[Event "Chessable English Womens-ch 2022"]
[Site "Kenilwoth"]
[Date "2022.05.19"]
[Round "2.2"]
[White "Pert, Nina"]
[Black "Milewska, Agnieszka"]
[Result "1-0"]
[ECO "C50"]
[WhiteElo "1620"]
[BlackElo "1677"]
[Annotator "NA COMBH"]
[PlyCount "51"]
[EventDate "2022.05.18"]
[EventType "swiss"]
[EventCountry "ENG"]
[SourceTitle "playchess.com"]
[Source "ChessBase"]
[SourceQuality "1"]
[TimeControl "5400+30"]

1. e4 {[%emt 0:00:03]} e5 {[%emt 0:00:01]} 2. Nf3 {[%emt 0:00:14]} Nc6 {[%emt 0:00:22]} 3. Bc4 {[%emt 0:00:13]} Nd4 {[%emt 0:01:26]} 4. Nxd4 {[%emt 0:00:15]} exd4 {[%emt 0:00:07]} 5. d3 {[%emt 0:00:07]} Bb4+ {[%emt 0:00:11]} 6. c3 {[%emt 0:01:55]} dxc3 {[%emt 0:00:03]} 7. bxc3 {[%emt 0:00:07]} Bc5 {[%emt 0:02:21]} 8. Bxf7+ {[%emt 0:00:27]} Kxf7 {[%emt 0:02:26]} 9. Qh5+ {[%emt 0:00:08]} g6 {[%emt 0:01:25]} 10. Qxc5 {[%emt 0:00:38]} Nf6 {[%emt 0:02:21]} 11. Bg5 {[%emt 0:02:17]} d6 {[%emt 0:02:43]} 12. Qe3 {[%emt 0:02:24]} Re8 {[%emt 0:01:50]} 13. O-O {[%emt 0:01:05]} b6 {[%emt 0:00:39]} 14. f4 {[%emt 0:01:41]} Qd7 {[%emt 0:03:01]} 15. f5 {[%emt 0:02:33]} gxf5 {[%emt 0:00:49]} 16. Bxf6 {[%emt 0:00:28]} Kxf6 {[%emt 0:04:01]} 17. Qh6+ {[%emt 0:00:09]} Ke7 {[%emt 0:01:57]} 18. Qg5+ {[%emt 0:00:30]} Kf7 {[%emt 0:00:53]} 19. Rxf5+ {[%emt 0:00:15]} Qxf5 {[%emt 0:00:25]} 20. exf5 {[%emt 0:00:05]} Bb7 {[%emt 0:00:29]} 21. Nd2 {[%emt 0:01:00]} Rg8 {[%emt 0:00:40]} 22. Qh5+ {[%emt 0:00:14]} Kf6 {[%emt 0:03:22]} 23. Qh6+ {[%emt 0:00:55]} Kf7 {[%emt 0:00:40]} 24. Qe6+ {[%emt 0:00:38]} Kg7 {[%emt 0:00:59]} 25. Ne4 {[%emt 0:01:37]} Rae8 {[%emt 0:00:49]} 26. Qf6# {[%emt 0:00:40]} 1-0

[Event "Chessable English Womens-ch 2022"]
[Site "Kenilwoth"]
[Date "2022.05.19"]
[Round "2.3"]
[White "Catabay, Mae Katelyn Rose"]
[Black "Dicen, Elis Denele"]
[Result "1-0"]
[ECO "C01"]
[WhiteElo "1321"]
[BlackElo "1635"]
[Annotator "NA RC COMBH"]
[PlyCount "139"]
[EventDate "2022.05.18"]
[EventType "swiss"]
[EventCountry "ENG"]
[SourceTitle "playchess.com"]
[Source "ChessBase"]
[SourceQuality "1"]
[TimeControl "5400+30"]

1. e4 {[%emt 0:00:05]} e6 {[%emt 0:00:08]} 2. d4 {[%emt 0:00:21]} d5 {[%emt 0:00:14]} 3. exd5 {[%emt 0:00:31]} exd5 {[%emt 0:00:19]} 4. Nf3 {[%emt 0:00:43]} Nf6 {[%emt 0:00:24]} 5. Bd3 {[%emt 0:02:00]} Be7 {[%emt 0:01:50]} 6. O-O {[%emt 0:02:28]} O-O {[%emt 0:00:34]} 7. Nbd2 {[%emt 0:01:18]} c5 {[%emt 0:01:47]} 8. b3 {[%emt 0:02:46]} Nc6 {[%emt 0:01:47]} 9. Bb2 {[%emt 0:04:24]} Nb4 {[%emt 0:03:19]} 10. dxc5 {[%emt 0:09:09]} Nxd3 {[%emt 0:02:29]} 11. cxd3 {[%emt 0:00:39]} Bxc5 {[%emt 0:01:49]} 12. Rc1 {[%emt 0:05:37]} Bd6 {[%emt 0:03:10]} 13. Re1 {[%emt 0:03:44]} Bf5 {[%emt 0:05:08]} 14. Nf1 {[%emt 0:08:34]} Bf4 {[%emt 0:09:00]} 15. Ne3 {[%emt 0:05:38]} Be6 {[%emt 0:02:36]} 16. Rc2 {[%emt 0:07:27]} Ng4 {[%emt 0:03:44]} 17. Rce2 {[%emt 0:06:03]} Qd6 {[%emt 0:06:04]} 18. g3 {[%emt 0:05:48]} Bh6 {[%emt 0:05:02]} 19. Ng2 {[%emt 0:08:45]} Bd7 {[%emt 0:04:20]} 20. Ne5 {[%emt 0:09:46]} Nxe5 {[%emt 0:04:16]} 21. Rxe5 {[%emt 0:01:09]} f6 {[%emt 0:05:56]} 22. Re7 {[%emt 0:02:28]} Rfe8 {[%emt 0:05:00]} 23. Qe2 {[%emt 0:04:20]} Kf8 {[%emt 0:05:04]} 24. Rxe8+ {[%emt 0:01:21]} Rxe8 {[%emt 0:00:24]} 25. Qc2 {[%emt 0:01:11]} Rxe1+ {[%emt 0:01:21]} 26. Nxe1 {[%emt 0:00:21]} Kg8 {[%emt 0:02:27]} 27. Bd4 {[%emt 0:03:03]} b6 {[%emt 0:01:33]} 28. Qc3 {[%emt 0:01:32]} Qe7 {[%emt 0:01:21]} 29. Nc2 {[%emt 0:02:38]} Qd6 {[%emt 0:04:48]} 30. Ne3 {[%emt 0:00:21]} Kf7 {[%emt 0:04:28]} 31. Kg2 {[%emt 0:00:30]} g6 {[%emt 0:01:14]} 32. b4 {[%emt 0:00:19]} Bf8 {[%emt 0:01:28]} 33. a3 {[%emt 0:00:56]} Be7 {[%emt 0:00:53]} 34. Qb3 {[%emt 0:00:14]} Be6 {[%emt 0:01:23]} 35. Qa4 {[%emt 0:00:15]} Qc7 {[%emt 0:02:24]} 36. Qb5 {[%emt 0:00:18]} Qb7 {[%emt 0:00:59]} 37. a4 {[%emt 0:00:11]} Kf8 {[%emt 0:03:02]} 38. Kg1 {[%emt 0:01:19]} Bd8 {[%emt 0:01:39]} 39. a5 {[%emt 0:00:24]} a6 {[%emt 0:00:34]} 40. Qa4 {[%emt 0:00:20]} b5 {[%emt 0:00:57]} 41. Qc2 {[%emt 0:00:23]} Be7 {[%emt 0:01:25]} 42. Qc3 {[%emt 0:00:16]} Kf7 {[%emt 0:00:11]} 43. Bc5 {[%emt 0:00:41]} Qc8 {[%emt 0:01:00]} 44. d4 {[%emt 0:00:38]} Bd8 {[%emt 0:00:56]} 45. Qb3 {[%emt 0:00:35]} Qd7 {[%emt 0:00:24]} 46. Qd1 {[%emt 0:00:10]} Bc7 {[%emt 0:00:52]} 47. Qf3 {[%emt 0:00:49]} Kg7 {[%emt 0:00:45]} 48. Ng2 {[%emt 0:00:40]} Bg4 {[%emt 0:00:44]} 49. Qe3 {[%emt 0:00:13]} Bf5 {[%emt 0:01:55]} 50. Nf4 {[%emt 0:00:31]} Bxf4 {[%emt 0:01:11]} 51. Qxf4 {[%emt 0:00:11]} Qe8 {[%emt 0:00:52]} 52. Qc7+ {[%emt 0:01:30]} Kg8 {[%emt 0:00:23]} 53. Be7 {[%emt 0:00:18]} Qf7 {[%emt 0:00:35]} 54. Qd6 {[%emt 0:00:34]} Kg7 {[%emt 0:00:17]} 55. Qd8 {[%emt 0:00:32]} Bh3 {[%emt 0:00:33]} 56. f3 {[%emt 0:00:27]} Bf5 {[%emt 0:00:13]} 57. Kf2 {[%emt 0:00:35]} Bd3 {[%emt 0:00:19]} 58. Qd6 {[%emt 0:00:14]} Bf5 {[%emt 0:00:34]} 59. g4 {[%emt 0:00:10]} Be6 {[%emt 0:00:26]} 60. h3 {[%emt 0:00:49]} h6 {[%emt 0:00:41]} 61. f4 {[%emt 0:00:31]} f5 {[%emt 0:00:37]} 62. g5 {[%emt 0:00:25]} Kh7 {[%emt 0:00:48]} 63. Bf6 {[%emt 0:00:26]} Bd7 {[%emt 0:00:50]} 64. Qxa6 {[%emt 0:00:18]} Qe8 {[%emt 0:00:17]} 65. Qd6 {[%emt 0:00:19]} Bc6 {[%emt 0:00:25]} 66. Be5 {[%emt 0:01:15]} Bd7 {[%emt 0:00:37]} 67. a6 {[%emt 0:00:09]} Bc6 {[%emt 0:00:29]} 68. Qf6 {[%emt 0:00:51]} Qg8 {[%emt 0:00:21]} 69. Qe7+ {[%emt 0:00:12]} Qg7 {[%emt 0:00:08]} 70. Qxg7# {[%emt 0:00:08]} 1-0

[Event "Chessable English Womens-ch 2022"]
[Site "Kenilwoth"]
[Date "2022.05.19"]
[Round "2.4"]
[White "Subramanian, Anusha"]
[Black "Sengenberger, Sara"]
[Result "1-0"]
[ECO "A38"]
[WhiteElo "1671"]
[BlackElo "1435"]
[Annotator "NA COMBH"]
[PlyCount "75"]
[EventDate "2022.05.18"]
[EventType "swiss"]
[EventCountry "ENG"]
[SourceTitle "playchess.com"]
[Source "ChessBase"]
[SourceQuality "1"]
[TimeControl "5400+30"]

1. c4 {[%emt 0:00:02]} c5 {[%emt 0:00:08]} 2. Nc3 {[%emt 0:00:09]} g6 {[%emt 0:00:13]} 3. g3 {[%emt 0:00:08]} Bg7 {[%emt 0:00:27]} 4. Bg2 {[%emt 0:00:11]} Nc6 {[%emt 0:00:24]} 5. Nf3 {[%emt 0:00:08]} Nf6 {[%emt 0:00:33]} 6. d4 {[%emt 0:00:17]} cxd4 {[%emt 0:00:19]} 7. Nxd4 {[%emt 0:00:08]} Qb6 {[%emt 0:01:56]} 8. e3 {[%emt 0:01:14]} O-O {[%emt 0:02:00]} 9. O-O {[%emt 0:00:45]} a6 {[%emt 0:01:23]} 10. b3 {[%emt 0:01:31]} d6 {[%emt 0:02:06]} 11. Bb2 {[%emt 0:02:09]} Nxd4 {[%emt 0:02:21]} 12. exd4 {[%emt 0:01:26]} Bf5 {[%emt 0:01:24]} 13. Rc1 {[%emt 0:03:14]} Bh6 {[%emt 0:07:20]} 14. Ra1 {[%emt 0:01:32]} Rad8 {[%emt 0:02:46]} 15. d5 {[%emt 0:03:43]} Nd7 {[%emt 0:02:47]} 16. g4 {[%emt 0:04:56]} Be6 {[%emt 0:02:50]} 17. Na4 {[%emt 0:03:22]} Qa7 {[%emt 0:01:44]} 18. dxe6 {[%emt 0:01:21]} fxe6 {[%emt 0:00:34]} 19. Bd4 {[%emt 0:03:48]} b6 {[%emt 0:01:05]} 20. Bc6 {[%emt 0:02:45]} Nc5 {[%emt 0:01:32]} 21. Qe2 {[%emt 0:03:06]} e5 {[%emt 0:02:24]} 22. Nxc5 {[%emt 0:04:10]} bxc5 {[%emt 0:00:57]} 23. Bd5+ {[%emt 0:00:38]} Kh8 {[%emt 0:00:06]} 24. Bc3 {[%emt 0:01:53]} Qd7 {[%emt 0:04:04]} 25. Rad1 {[%emt 0:01:56]} Bf4 {[%emt 0:01:12]} 26. Rd3 {[%emt 0:02:35]} e6 {[%emt 0:01:36]} 27. Bg2 {[%emt 0:01:16]} Qe7 {[%emt 0:04:00]} 28. Bd2 {[%emt 0:03:44]} g5 {[%emt 0:05:26]} 29. Bxf4 {[%emt 0:02:43]} gxf4 {[%emt 0:00:37]} 30. Rfd1 {[%emt 0:01:05]} Rf6 {[%emt 0:03:07]} 31. Qd2 {[%emt 0:01:43]} Qg7 {[%emt 0:01:10]} 32. h3 {[%emt 0:03:48]} h5 {[%emt 0:00:39]} 33. f3 {[%emt 0:01:56]} hxg4 {[%emt 0:00:26]} 34. hxg4 {[%emt 0:00:35]} e4 {[%emt 0:02:11]} 35. Rxd6 {[%emt 0:02:01]} Rxd6 {[%emt 0:00:08]} 36. Qxd6 {[%emt 0:00:15]} e3 {[%emt 0:00:39]} 37. Qxc5 {[%emt 0:03:41]} Rh6 {[%emt 0:00:54]} 38. Qc8+ {[%emt 0:00:47]} 1-0

[Event "Chessable English Womens-ch 2022"]
[Site "Kenilwoth"]
[Date "2022.05.20"]
[Round "3.1"]
[White "Gamal, Alaa"]
[Black "Pert, Nina"]
[Result "1-0"]
[ECO "A99"]
[WhiteElo "1651"]
[BlackElo "1620"]
[Annotator "NA RC COMBH"]
[PlyCount "67"]
[EventDate "2022.05.18"]
[EventType "swiss"]
[EventCountry "ENG"]
[SourceTitle "playchess.com"]
[Source "ChessBase"]
[SourceQuality "1"]
[TimeControl "5400+30"]

1. d4 {[%emt 0:05:14]} e6 {[%emt 0:00:16]} 2. c4 {[%emt 0:00:34]} f5 {[%emt 0:00:14]} 3. g3 {[%emt 0:00:11]} Nf6 {[%emt 0:00:12]} 4. Nf3 {[%emt 0:00:20]} Be7 {[%emt 0:00:12]} 5. Bg2 {[%emt 0:00:08]} O-O {[%emt 0:00:13]} 6. O-O {[%emt 0:00:08]} d6 {[%emt 0:00:37]} 7. b3 {[%emt 0:00:09]} Qe8 {[%emt 0:02:43]} 8. Bb2 {[%emt 0:01:07]} Qh5 {[%emt 0:02:57]} 9. Nc3 {[%emt 0:01:26]} f4 {[%emt 0:09:46]} 10. gxf4 {[%emt 0:04:58]} Ng4 {[%emt 0:05:12]} 11. e3 {[%emt 0:01:18]} c6 {[%emt 0:06:50]} 12. Ne4 {[%emt 0:07:41]} Qh6 {[%emt 0:10:26]} 13. h3 {[%emt 0:01:34]} Nf6 {[%emt 0:02:15]} 14. Ng3 {[%emt 0:04:41]} Nh5 {[%emt 0:07:49]} 15. Ba3 {[%emt 0:10:28]} Nd7 {[%emt 0:06:17]} 16. Ne5 {[%emt 0:04:14]} Ndf6 {[%emt 0:01:31]} 17. Nxh5 {[%emt 0:06:12]} Nxh5 {[%emt 0:00:18]} 18. Ng4 {[%emt 0:00:39]} Qg6 {[%emt 0:00:16]} 19. Kh2 {[%emt 0:01:43]} Qf5 {[%emt 0:04:25]} 20. Rg1 {[%emt 0:04:47]} Kh8 {[%emt 0:00:12]} 21. Ne5 {[%emt 0:02:41]} c5 {[%emt 0:11:09]} 22. Ng4 {[%emt 0:05:03]} Rb8 {[%emt 0:07:18]} 23. dxc5 {[%emt 0:01:38]} dxc5 {[%emt 0:00:08]} 24. Bb2 {[%emt 0:00:20]} Rd8 {[%emt 0:05:50]} 25. Qe2 {[%emt 0:00:02]} Bd6 {[%emt 0:00:26]} 26. Rad1 {[%emt 0:01:47]} Qf8 {[%emt 0:02:16]} 27. Ne5 {[%emt 0:00:17]} Nf6 {[%emt 0:00:20]} 28. Bh1 {[%emt 0:00:32]} Bd7 {[%emt 0:01:32]} 29. Rxd6 {[%emt 0:00:42]} Be8 {[%emt 0:00:54]} 30. Rxd8 {[%emt 0:00:27]} Rxd8 {[%emt 0:00:05]} 31. Rd1 {[%emt 0:00:46]} Rb8 {[%emt 0:00:28]} 32. Qd2 {[%emt 0:01:00]} Bh5 {[%emt 0:00:52]} 33. f3 {[%emt 0:01:53]} Rc8 {[%emt 0:01:07]} 34. Nd7 {[%emt 0:00:51]} 1-0

[Event "Chessable English Womens-ch 2022"]
[Site "Kenilwoth"]
[Date "2022.05.20"]
[Round "3.2"]
[White "Yao, Lan"]
[Black "Subramanian, Anusha"]
[Result "1-0"]
[ECO "B15"]
[WhiteElo "2276"]
[BlackElo "1671"]
[Annotator "TA"]
[PlyCount "79"]
[EventDate "2022.05.18"]
[EventType "swiss"]
[EventCountry "ENG"]
[SourceTitle "playchess.com"]
[Source "ChessBase"]
[SourceQuality "1"]
[TimeControl "5400+30"]

{[%evp 12,78,27,21,34,41,42,53,70,73,84,85,117,61,116,99,306,189,392,380,857,939,921,880,893,887,29989,29990,29990,29991,29991,2699,29988,29989,29989,29990,29989,29990,29992,4222,2744,2714,29982,2840,2527,2452,2597,2479,29988,29989,29992,29993,29996,29992,29996,29994,29995,29994,29994,29995,29995,29996,29997,29998,29998,29998,29998,29999,29999]} 1. e4 {[%emt 0:00:02]} c6 {[%emt 0:00:04]} 2. d4 {[%emt 0:00:04]} d5 {[%emt 0:00:05]} 3. Nd2 {[%emt 0:00:04]} dxe4 {[%emt 0:00:06]} 4. Nxe4 {[%emt 0:00:03]} Nf6 {[%emt 0:00:07]} 5. Nxf6+ {[%emt 0:00:09]} exf6 {[%emt 0:00:07]} 6. c3 {[%emt 0:00:07]} Bd6 {[%emt 0:00:06]} 7. Bd3 {[%emt 0:00:05]} Na6 {[%emt 0:00:06] B15: Caro-Kann: 3 Nc3: 3...g6 and 3...dxe4 4 Nxe4 Nf6 5 Nxf6+ exf6.} 8. Ne2 {[%emt 0:00:27]} O-O {[%emt 0:00:25]} 9. Qc2 {[%emt 0:00:05]} g6 {[%emt 0:01:17] White is slightly better.} 10. h4 {[%emt 0:00:17][%cal Bh2h4,Bh4h5][%mdl 32]} Re8 {[%emt 0:03:06]} 11. h5 {[%emt 0:04:23][%cal Rh5g6]} f5 {[%emt 0:08:32]} 12. Bd2 {[%emt 0:03:21]} (12. hxg6 $16 hxg6 13. g4) 12... Be6 {[%emt 0:04:31] [#]} ({Black should try} 12... Nc7 $14) 13. O-O-O $146 {[%emt 0:05:25] Hoping for hxg6.} ({Predecessor:} 13. hxg6 hxg6 14. O-O-O Qf6 15. Kb1 b5 16. Rh6 Bf8 17. Rh3 Bg7 18. Rdh1 Nc7 19. Bf4 {1-0 (61) Wosch,A (2256)-Markus,R (2197) LSS email 2011}) 13... b5 $2 {[%emt 0:05:07]} (13... Bxa2 14. hxg6 hxg6 15. g4) (13... Qf6 $16 {was called for.}) 14. g4 {[%emt 0:07:32] Threatens to win with hxg6.} Bd5 $2 {[%emt 0:16:01]} (14... fxg4 $2 15. hxg6 hxg6 16. Bxg6 $1 $18 {[%mdl 512]}) (14... g5) 15. hxg6 $18 {[%emt 0:02:05]} Bxh1 $2 {[%emt 0:04:52]} (15... hxg6 16. gxf5 Bxh1) 16. gxf7+ {[%emt 0:01:53]} Kxf7 {[%emt 0:04:29]} 17. Rxh1 {[%emt 0:00:08]} Rh8 {[%emt 0:05:34]} 18. Bxf5 {[%emt 0:04:27] aiming for Qb3+.} Be7 {[%emt 0:09:08] [#]} 19. Be6+ $1 {[%emt 0:03:14][%mdl 512] A strong pair of Bishops.} Ke8 {[%emt 0:05:12]} 20. Rxh7 {[%emt 0:00:28]} Rg8 {[%emt 0:09:59]} 21. Bxg8 {[%emt 0:00:46]} (21. Bf4 $142 Bg5 22. Bf7+ Kf8 23. Bxg8 Qf6 24. Rf7+ Qxf7 25. Bxf7 Kxf7 26. Bxg5) 21... Qd7 {[%emt 0:08:34]} 22. Qg6+ {[%emt 0:01:27]} Kd8 {[%emt 0:00:13]} 23. Be6 {[%emt 0:00:18]} Qe8 {[%emt 0:04:01]} 24. Bf7 {[%emt 0:00:15]} Qd7 {[%emt 0:04:05]} 25. Rh8+ {[%emt 0:00:11]} (25. Bf4 $142 Bd6 26. Bxd6 Kc8 27. Be6 Kb7 28. Rxd7+ Nc7 29. Rxc7+ Kb6 30. Qe4 c5 31. Qxa8 a6 32. Rc6+ Ka5 33. Rxa6#) 25... Kc7 {[%emt 0:00:26]} 26. Rxa8 {[%emt 0:00:06]} Kb7 {[%emt 0:00:34]} 27. Rh8 {[%emt 0:00:43]} (27. Be6 $142 Qd6 28. Bf4 Kb6 29. Bxd6 Bxd6 30. Bc8 Bh2 31. b4 Bc7 32. Bxa6 Bg3 {[#]} 33. d5 $1 Bf4+ 34. Nxf4 Kxa6 35. Qxc6#) 27... Nc7 {[%emt 0:01:59]} 28. Rh7 {[%emt 0:00:51]} a5 {[%emt 0:01:17]} 29. Qe4 {[%emt 0:00:56] Bb3 would kill now.} Bd6 {[%emt 0:02:13]} 30. Be8 {[%emt 0:01:14] White mates.} Qd8 {[%emt 0:01:21]} 31. Qxc6+ {[%emt 0:00:15]} Kb8 {[%emt 0:00:45]} 32. Rd7 {[%emt 0:00:25]} Qc8 {[%emt 0:01:05]} 33. Qxd6 {[%emt 0:00:14]} Qb7 {[%emt 0:00:42]} 34. Rd8+ {[%emt 0:00:21]} Ka7 {[%emt 0:00:16]} 35. Bc6 {[%emt 0:00:10]} Qb6 {[%emt 0:00:44]} 36. Qd7 {[%emt 0:00:20][%csl Gc6][%cal Rd8a8]} Qxc6 {[%emt 0:00:42]} 37. Qxc6 {[%emt 0:00:11]} b4 {[%emt 0:00:12]} 38. Qxc7+ {[%emt 0:00:12]} Ka6 {[%emt 0:00:21]} 39. Rd6+ {[%emt 0:00:08]} Kb5 {[%emt 0:00:07]} 40. Qc6# {[%emt 0:00:03] Black did not feel at home in the position after the opening.  Weighted Error Value: White=0.13 (very precise) /Black=1.46} 1-0

[Event "Chessable English Womens-ch 2022"]
[Site "Kenilwoth"]
[Date "2022.05.20"]
[Round "3.3"]
[White "Milewska, Agnieszka"]
[Black "Catabay, Mae Katelyn Rose"]
[Result "1/2-1/2"]
[ECO "D94"]
[WhiteElo "1677"]
[BlackElo "1321"]
[Annotator "NA RC COMBH"]
[PlyCount "198"]
[EventDate "2022.05.18"]
[EventType "swiss"]
[EventCountry "ENG"]
[SourceTitle "playchess.com"]
[Source "ChessBase"]
[SourceQuality "1"]
[TimeControl "5400+30"]

1. d4 {[%emt 0:00:01]} Nf6 {[%emt 0:00:07]} 2. c4 {[%emt 0:00:09]} g6 {[%emt 0:00:15]} 3. Nc3 {[%emt 0:00:26]} d5 {[%emt 0:00:24]} 4. e3 {[%emt 0:00:09]} Bg7 {[%emt 0:00:44]} 5. Nf3 {[%emt 0:00:02]} O-O {[%emt 0:01:23]} 6. cxd5 {[%emt 0:02:54]} Nxd5 {[%emt 0:01:07]} 7. Bc4 {[%emt 0:00:17]} e6 {[%emt 0:03:07]} 8. O-O {[%emt 0:00:23]} b6 {[%emt 0:01:34]} 9. e4 {[%emt 0:01:59]} Nxc3 {[%emt 0:02:20]} 10. bxc3 {[%emt 0:00:03]} Bb7 {[%emt 0:03:22]} 11. e5 {[%emt 0:01:05]} Nc6 {[%emt 0:01:58]} 12. Bg5 {[%emt 0:03:29]} Qd7 {[%emt 0:02:16]} 13. Qc1 {[%emt 0:04:11]} Ne7 {[%emt 0:08:36]} 14. Bxe7 {[%emt 0:17:24]} Qxe7 {[%emt 0:00:36]} 15. Qe3 {[%emt 0:01:57]} Rac8 {[%emt 0:02:56]} 16. Bb3 {[%emt 0:09:45]} c5 {[%emt 0:04:07]} 17. Ng5 {[%emt 0:03:32]} h6 {[%emt 0:04:02]} 18. Ne4 {[%emt 0:00:15]} Bxe4 {[%emt 0:01:44]} 19. Qxe4 {[%emt 0:00:05]} c4 {[%emt 0:02:10]} 20. Bc2 {[%emt 0:00:07]} b5 {[%emt 0:10:44]} 21. h4 {[%emt 0:00:15]} h5 {[%emt 0:00:34]} 22. a4 {[%emt 0:00:41]} b4 {[%emt 0:03:58]} 23. cxb4 {[%emt 0:00:37]} Qxb4 {[%emt 0:01:40]} 24. Rab1 {[%emt 0:00:30]} Qc3 {[%emt 0:01:36]} 25. Rb7 {[%emt 0:00:13]} Rb8 {[%emt 0:01:42]} 26. Rfb1 {[%emt 0:01:36]} Rxb7 {[%emt 0:00:35]} 27. Rxb7 {[%emt 0:00:02]} Rd8 {[%emt 0:01:03]} 28. Qf4 {[%emt 0:13:23]} Rf8 {[%emt 0:05:27]} 29. Qe4 {[%emt 0:10:39]} Bh6 {[%emt 0:04:45]} 30. Rxa7 {[%emt 0:01:53]} Bf4 {[%emt 0:05:38]} 31. Qxf4 {[%emt 0:08:47]} Qxc2 {[%emt 0:00:36]} 32. a5 {[%emt 0:00:57]} c3 {[%emt 0:02:09]} 33. Rc7 {[%emt 0:01:17]} Qd2 {[%emt 0:01:41]} 34. Qe3 {[%emt 0:00:01]} Ra8 {[%emt 0:10:35]} 35. Qxc3 {[%emt 0:01:20]} Qxc3 {[%emt 0:00:14]} 36. Rxc3 {[%emt 0:00:01]} Rxa5 {[%emt 0:00:10]} 37. Rc8+ {[%emt 0:01:22]} Kg7 {[%emt 0:00:13]} 38. Rd8 {[%emt 0:00:44]} Ra2 {[%emt 0:02:20]} 39. g3 {[%emt 0:00:38]} Ra5 {[%emt 0:03:27]} 40. Kg2 {[%emt 0:00:10]} Ra3 {[%emt 0:00:40]} 41. d5 {[%emt 0:01:09]} exd5 {[%emt 0:00:20]} 42. Rxd5 {[%emt 0:00:01]} Kf8 {[%emt 0:00:20]} 43. f4 {[%emt 0:00:29]} Ke7 {[%emt 0:00:35]} 44. Rb5 {[%emt 0:00:39]} Rc3 {[%emt 0:00:53]} 45. Rb7+ {[%emt 0:00:21]} Ke6 {[%emt 0:00:16]} 46. Rb6+ {[%emt 0:00:01]} Ke7 {[%emt 0:00:24]} 47. Rb2 {[%emt 0:00:30]} Ke6 {[%emt 0:00:44]} 48. Rf2 {[%emt 0:00:33]} Kf5 {[%emt 0:00:17]} 49. Rf3 {[%emt 0:00:48]} Rc2+ {[%emt 0:00:47]} 50. Kh3 {[%emt 0:00:01]} Rd2 {[%emt 0:01:09]} 51. Rb3 {[%emt 0:00:28]} Rd7 {[%emt 0:02:33]} 52. Rb6 {[%emt 0:00:14]} Ke4 {[%emt 0:01:17]} 53. e6 {[%emt 0:00:48]} fxe6 {[%emt 0:00:09]} 54. Rxe6+ {[%emt 0:00:01]} Kf5 {[%emt 0:00:14]} 55. Re5+ {[%emt 0:00:02]} Kf6 {[%emt 0:00:21]} 56. Kg2 {[%emt 0:01:07]} Rd3 {[%emt 0:00:36]} 57. Kf2 {[%emt 0:00:02]} Rc3 {[%emt 0:00:22]} 58. Rg5 {[%emt 0:01:42]} Rb3 {[%emt 0:01:14]} 59. f5 {[%emt 0:00:13]} Rb2+ {[%emt 0:01:08]} 60. Kf3 {[%emt 0:00:00]} Rb3+ {[%emt 0:00:24]} 61. Kg2 {[%emt 0:00:18]} Rb2+ {[%emt 0:01:12]} 62. Kh3 {[%emt 0:00:01]} gxf5 {[%emt 0:01:07]} 63. Rxh5 {[%emt 0:00:01]} Rb4 {[%emt 0:00:31]} 64. Rh6+ {[%emt 0:00:25]} Kg7 {[%emt 0:00:14]} 65. Rc6 {[%emt 0:00:02]} Rb3 {[%emt 0:01:25]} 66. Kg2 {[%emt 0:00:01]} Rd3 {[%emt 0:00:36]} 67. h5 {[%emt 0:00:47]} Rb3 {[%emt 0:00:29]} 68. h6+ {[%emt 0:05:17]} Kf7 {[%emt 0:00:35]} 69. h7 {[%emt 0:01:20]} Rb8 {[%emt 0:00:26]} 70. Kf3 {[%emt 0:00:20]} Kg7 {[%emt 0:00:34]} 71. Rc7+ {[%emt 0:00:02]} Kg6 {[%emt 0:00:22]} 72. Kf4 {[%emt 0:00:06]} Rb4+ {[%emt 0:00:39]} 73. Kf3 {[%emt 0:01:50]} Rb8 {[%emt 0:00:06]} 74. Rb7 {[%emt 0:01:24]} Rh8 {[%emt 0:00:14]} 75. Kf4 {[%emt 0:00:15]} Re8 {[%emt 0:00:10]} 76. Rb6+ {[%emt 0:00:13]} Kxh7 {[%emt 0:00:21]} 77. Kxf5 {[%emt 0:00:01]} Re7 {[%emt 0:00:59]} 78. g4 {[%emt 0:00:23]} Kg7 {[%emt 0:00:25]} 79. Rb5 {[%emt 0:01:35]} Kf7 {[%emt 0:00:48]} 80. g5 {[%emt 0:00:33]} Rc7 {[%emt 0:00:13]} 81. Rb6 {[%emt 0:00:44]} Rc5+ {[%emt 0:00:30]} 82. Kg4 {[%emt 0:00:02]} Rc1 {[%emt 0:00:22]} 83. Rf6+ {[%emt 0:00:38]} Kg7 {[%emt 0:00:11]} 84. Rf4 {[%emt 0:01:37]} Rg1+ {[%emt 0:00:09]} 85. Kf5 {[%emt 0:00:02]} Rb1 {[%emt 0:00:23]} 86. Kg4 {[%emt 0:03:41]} Rg1+ {[%emt 0:00:07]} 87. Kh5 {[%emt 0:00:05]} Rh1+ {[%emt 0:00:09]} 88. Rh4 {[%emt 0:00:06]} Rxh4+ {[%emt 0:00:10]} 89. Kxh4 {[%emt 0:00:01]} Kg6 {[%emt 0:00:08]} 90. Kg4 {[%emt 0:00:11]} Kg7 {[%emt 0:00:07]} 91. Kf4 {[%emt 0:00:17]} Kg6 {[%emt 0:00:08]} 92. Kg4 {[%emt 0:00:08]} Kg7 {[%emt 0:00:06]} 93. Kf5 {[%emt 0:00:01]} Kf7 {[%emt 0:00:11]} 94. g6+ {[%emt 0:01:17]} Kg7 {[%emt 0:00:05]} 95. Kg5 {[%emt 0:00:05]} Kg8 {[%emt 0:00:05]} 96. Kh6 {[%emt 0:00:07]} Kh8 {[%emt 0:00:06]} 97. Kh5 {[%emt 0:00:04]} Kg7 {[%emt 0:00:05]} 98. Kg5 {[%emt 0:00:02]} Kg8 {[%emt 0:00:07]} 99. Kf6 {[%emt 0:00:09]} Kf8 {[%emt 0:00:11]} 1/2-1/2